fUST/lending_fUST_20251014
["ID","MTS","AMOUNT","RATE_DAILY","PERIOD"]
[391193790,1760413864611,-500.0,0.00024801,2]
[391193791,1760413864620,-151.0,0.00024801,2]
[391193792,1760413864629,-250.0,0.00024801,2]
[391193793,1760413864638,-500.0,0.00024801,2]
[391193794,1760413864647,-152.7921576,0.00024801,2]
[391193795,1760413864656,-250.0,0.00024801,2]
[391193796,1760413864665,-521.78756786,0.00024801,2]
[391193797,1760413864675,-250.0,0.00024801,2]
[391193798,1760413864684,-250.0,0.00024801,2]
[391193799,1760413864693,-250.0,0.00024801,2]
[391193800,1760413864704,-250.0,0.00024801,2]
[391193801,1760413864713,-250.0,0.00024801,2]
[391193802,1760413864722,-1000.0,0.00024801,2]
[391193803,1760413864732,-1000.0,0.00024801,2]
[391193804,1760413864741,-1000.0,0.00024801,2]
[391193805,1760413864750,-151.0,0.00024801,2]
[391193806,1760413864759,-1000.0,0.00024801,2]
[391193807,1760413864768,-151.0,0.00024801,2]
[391193808,1760413864777,-151.0,0.00024801,2]
[391193809,1760413864786,-1000.0,0.00024801,2]
[391193810,1760413864796,-151.0,0.00024801,2]
[391193811,1760413864805,-151.0,0.00024801,2]
[391193812,1760413864814,-1000.0,0.00024801,2]
[391193813,1760413864823,-151.0,0.00024801,2]
[391193814,1760413864831,-151.0,0.00024801,2]
[391193815,1760413864841,-1000.0,0.00024801,2]
[391193816,1760413864850,-151.0,0.00024801,2]
[391193817,1760413864859,-151.0,0.00024801,2]
[391193818,1760413864868,-1000.0,0.00024801,2]
[391193819,1760413864877,-151.0,0.00024801,2]
[391193820,1760413864886,-151.0,0.00024801,2]
[391193821,1760413864895,-1000.0,0.00024801,2]
[391193822,1760413864904,-151.0,0.00024801,2]
[391193823,1760413864913,-194.63809315,0.00024801,2]
[391193824,1760413864922,-1000.0,0.00024801,2]
[391193825,1760413864931,-151.0,0.00024801,2]
[391193826,1760413864940,-1000.0,0.00024801,2]
[391193827,1760413864950,-151.0,0.00024801,2]
[391193828,1760413864959,-1000.0,0.00024801,2]
[391193829,1760413864969,-151.0,0.00024801,2]
[391193830,1760413864978,-1000.0,0.00024801,2]
[391193831,1760413864988,-151.0,0.00024801,2]
[391193832,1760413864997,-1000.0,0.00024801,2]
[391193833,1760413865007,-151.0,0.00024801,2]
[391193834,1760413865016,-1000.0,0.00024801,2]
[391193835,1760413865025,-151.0,0.00024801,2]
[391193836,1760413865035,-1000.0,0.00024801,2]
[391193837,1760413865044,-151.0,0.00024801,2]
[391193838,1760413865053,-1089.90358424,0.00024801,2]
[391193839,1760413865062,-297.08905221,0.00024801,2]
[391193840,1760413865072,-151.0,0.00024801,2]
[391193841,1760413865081,-151.0,0.00024801,2]
[391193842,1760413865090,-151.0,0.00024801,2]
[391193843,1760413865099,-151.0,0.00024801,2]
[391193844,1760413865108,-151.0,0.00024801,2]
[391193845,1760413865117,-151.0,0.00024801,2]
[391193846,1760413865126,-151.0,0.00024801,2]
[391193847,1760413865135,-151.0,0.00024801,2]
[391193848,1760413865144,-151.0,0.00024801,2]
[391193849,1760413865153,-151.0,0.00024801,2]
[391193850,1760413865162,-151.0,0.00024801,2]
[391193851,1760413865171,-151.0,0.00024801,2]
[391193852,1760413865186,-151.0,0.00024801,2]
[391193853,1760413865196,-151.0,0.00024801,2]
[391193854,1760413865205,-151.0,0.00024801,2]
[391193855,1760413865214,-151.0,0.00024801,2]
[391193856,1760413865224,-151.0,0.00024801,2]
[391193857,1760413865233,-151.0,0.00024801,2]
[391193858,1760413865242,-151.0,0.00024801,7]
[391193859,1760413865252,-764.893788,0.00024801,7]
[391193860,1760413865261,-764.893788,0.00024801,7]
[391193861,1760413865270,-151.0,0.00024801,7]
[391193862,1760413865279,-764.893788,0.00024801,7]
[391193863,1760413865290,-184.155896,0.00024801,7]
[391193864,1760413865299,-764.893788,0.00024801,7]
[391193865,1760413865308,-184.155896,0.00024801,7]
[391193866,1760413865317,-184.155896,0.00024801,7]
[391193867,1760413865325,-184.155896,0.00024801,7]
[391193868,1760413865334,-356.498542,0.00024801,7]
[391193869,1760413865343,-356.498542,0.00024801,7]
[391193870,1760413865414,-356.498542,0.00024801,7]
[391193871,1760413865424,-356.498542,0.00024801,7]
[391193872,1760413865433,-151.0,0.00024801,7]
[391193873,1760413865442,-151.0,0.00024801,7]
[391193874,1760413865452,-151.0,0.00024801,7]
[391193875,1760413865461,-162.079315,0.00024801,7]
[391193876,1760413865470,-151.0,0.00024801,7]
[391193877,1760413865479,-151.0,0.00024801,7]
[391193878,1760413865488,-199.381887,0.00024801,7]
[391193879,1760413865497,-199.381887,0.00024801,7]
[391193880,1760413865506,-199.381887,0.00024801,7]
[391193881,1760413865515,-199.381887,0.00024801,7]
[391193882,1760413865524,-158.024921,0.00024801,7]
[391193883,1760413865534,-151.0,0.00024801,7]
[391193884,1760413865543,-151.0,0.00024801,7]
[391193885,1760413865553,-151.0,0.00024801,7]
[391193886,1760413865562,-151.0,0.00024801,7]
[391193887,1760413865570,-151.0,0.00024801,7]
[391193888,1760413865580,-374.98897096,0.00024821,2]
[391193889,1760413865589,-1424.25330228,0.00024856,2]
[391193890,1760413865598,-151.0,0.000249,9]
[391193891,1760413865607,-69084.52,0.000249,7]
[391193892,1760413865616,-151.0,0.000249,7]
[391193893,1760413865624,-151.0,0.000249,7]
[391193894,1760413865634,-151.0,0.000249,7]
[391193895,1760413865643,-151.0,0.000249,7]
[391193896,1760413865652,-151.0,0.000249,7]
[391193897,1760413865661,-151.0,0.000249,7]
[391193898,1760413865670,-151.0,0.000249,7]
[391193899,1760413865683,-151.0,0.000249,7]
[391193900,1760413865693,-151.0,0.000249,7]
[391193901,1760413865703,-151.0,0.000249,7]
[391193902,1760413865712,-151.0,0.000249,7]
[391193903,1760413865722,-151.0,0.000249,7]
[391193904,1760413865731,-151.0,0.000249,7]
[391193905,1760413865740,-151.0,0.000249,7]
[391193906,1760413865749,-155.582485,0.000249,7]
[391193907,1760413865759,-151.0,0.000249,7]
[391193908,1760413865768,-151.0,0.000249,7]
[391193909,1760413865778,-151.0,0.000249,7]
[391193910,1760413865787,-151.0,0.000249,7]
[391193911,1760413865796,-151.0,0.000249,7]
[391193912,1760413865805,-419302.226106,0.000249,2]
[391193913,1760413865815,-151.0,0.000249,7]
[391193914,1760413865824,-151.0,0.000249,7]
[391193915,1760413865833,-151.0,0.000249,7]
[391193916,1760413865843,-151.0,0.000249,7]
[391193917,1760413865853,-151.0,0.000249,7]
[391193918,1760413865862,-151.0,0.000249,7]
[391193919,1760413865871,-151.0,0.000249,7]
[391193920,1760413865880,-292.564823,0.000249,2]
[391193921,1760413865890,-1668.917793,0.000249,7]
[391193922,1760413865907,-151.0,0.000249,7]
[391193923,1760413865924,-151.0,0.000249,7]
[391193924,1760413865941,-1668.917793,0.000249,7]
[391193925,1760413865960,-1668.917793,0.000249,7]
[391193926,1760413865979,-1668.917793,0.000249,7]
[391193927,1760413865996,-185.709809,0.000249,7]
[391193928,1760413866014,-185.709809,0.000249,7]
[391193929,1760413866028,-185.709809,0.000249,7]
[391193930,1760413866045,-151.0,0.000249,7]
[391193931,1760413866064,-185.709809,0.000249,7]
[391193932,1760413866083,-583.122522,0.000249,7]
[391193933,1760413866095,-583.122522,0.000249,7]
[391193934,1760413866114,-583.122522,0.000249,7]
[391193935,1760413866128,-583.122522,0.000249,7]
[391193936,1760413866144,-1500.0,0.00024931,8]
[391193937,1760413866158,-17667.34,0.00024953,2]
[391193938,1760413866172,-511.55211974,0.00024965,2]
[391193939,1760413866192,-189.9368307,0.00025,2]
[391193940,1760413866207,-417.15472785,0.00025,2]
[391193941,1760413866221,-160.0,0.00025004,2]
[391193942,1760413866235,-864.0,0.0002501,20]
[391193943,1760413866250,-160.0,0.00025014,2]
[391193944,1760413866269,-160.0,0.00025014,2]
[391193945,1760413866288,-372.161,0.00025069,9]
[391193946,1760413866304,-181.29268049,0.00025069,9]
[391193947,1760413866320,-174.84494797,0.000251,2]
[391193948,1760413866335,-783.46581218,0.000251,2]
[391193949,1760413866350,-200.92979394,0.000251,2]
[391193950,1760413866364,-194.63276301,0.000251,2]
[391193951,1760413866379,-2584.09870249,0.00025204,2]
[391193952,1760413866393,-1500.0,0.00025205,8]
[391193953,1760413866407,-5759.6770232,0.0002525,2]
[391193954,1760413866420,-783.46581218,0.000253,2]
[391193955,1760413866435,-194.63276301,0.000253,2]
[391193956,1760413866450,-229.0,0.00025315,16]
[391193957,1760413866464,-301.77797328,0.00025321,2]
[391193958,1760413866478,-157.47642121,0.00025333,2]
[391193959,1760413866492,-151.0,0.00025349,2]
[391193960,1760413866507,-19292.2273969,0.00025349,2]
[391193961,1760413866522,-168.3888056,0.00025349,2]
[391193962,1760413866537,-151.0,0.000254,11]
[391193963,1760413866551,-300.0,0.000254,2]
[391193964,1760413866566,-300.0,0.000254,2]
[391193965,1760413866581,-300.0,0.000254,2]
[391193966,1760413866595,-160.0,0.0002543,3]
[391193967,1760413866609,-500.0,0.00025473,2]
[391193968,1760413866624,-500.0,0.00025473,2]
[391193969,1760413866639,-1500.0,0.00025479,8]
[391193970,1760413866653,-546.43067336,0.00025565,2]
[391193971,1760413866667,-783.46581218,0.000256,2]
[391193972,1760413866682,-194.63276301,0.000256,2]
[391193973,1760413866696,-1908.92393641,0.00025633,2]
[391193974,1760413866800,-5290.1335386,0.0002569,2]
[391193975,1760413866810,-2170.63344253,0.00025712,2]
[391193976,1760413866819,-1500.0,0.00025753,8]
[391193977,1760413866828,-783.46581218,0.000258,2]
[391193978,1760413866837,-194.63276301,0.000258,2]
[391193979,1760413866847,-20191.25,0.00025877,2]
[391193980,1760413866856,-167.80282393,0.00025897,2]
[391193981,1760413866866,-20006.03981059,0.00025897,2]
[391193982,1760413866876,-320.23838143,0.00025897,2]
[391193983,1760413866885,-823.0,0.00025898,2]
[391193984,1760413866895,-151.0,0.000259,18]
[391193985,1760413866905,-151.0,0.00025967,7]
[391193986,1760413866915,-156.213338,0.00025967,7]
[391193987,1760413866926,-156.213338,0.00025967,7]
[391193988,1760413866936,-151.0,0.00025967,7]
[391193989,1760413866945,-156.213338,0.00025967,7]
[391193990,1760413866955,-180.684402,0.00025967,7]
[391193991,1760413866964,-156.213338,0.00025967,7]
[391193992,1760413866973,-151.0,0.00025967,7]
[391193993,1760413866982,-151.0,0.00025967,7]
[391193994,1760413866992,-151.0,0.00025967,7]
[391193995,1760413867001,-153.786723,0.00025967,7]
[391193996,1760413867010,-151.0,0.00025967,7]
[391193997,1760413867020,-151.0,0.00025967,7]
[391193998,1760413867029,-240.463731,0.00025967,7]
[391193999,1760413867038,-240.463731,0.00025967,7]
[391194000,1760413867047,-151.0,0.00025967,7]
[391194001,1760413867058,-151.0,0.00025967,7]
[391194002,1760413867067,-240.463731,0.00025967,7]
[391194003,1760413867076,-240.463731,0.00025967,7]
[391194004,1760413867086,-151.0,0.00025967,7]
[391194005,1760413867095,-151.0,0.00025967,7]
[391194006,1760413867107,-184.75232,0.00025967,7]
[391194007,1760413867117,-184.75232,0.00025967,7]
[391194008,1760413867127,-184.75232,0.00025967,7]
[391194009,1760413867137,-184.75232,0.00025967,7]
[391194010,1760413867148,-197.123568,0.00025967,7]
[391194011,1760413867158,-151.0,0.00025967,7]
[391194012,1760413867167,-151.0,0.00025967,7]
[391194013,1760413867179,-151.0,0.00025967,7]
[391194014,1760413867189,-151.0,0.00025967,7]
[391194015,1760413867198,-239.0,0.00026,3]
[391194016,1760413867208,-1000.0,0.00026021,2]
[391194017,1760413867217,-1000.0,0.00026021,2]
[391194018,1760413867226,-1500.0,0.00026027,8]
[391194019,1760413867235,-9710.11,0.00026027,2]
[391194020,1760413867245,-305.20186235,0.00026095,2]
[391194021,1760413867257,-783.46581218,0.000261,2]
[391194022,1760413867267,-1525.56898579,0.00026109,2]
[391194023,1760413867276,-581.30922698,0.00026165,2]
[391194024,1760413867287,-168.3888056,0.0002617,2]
[391194025,1760413867298,-1429.0,0.00026272,2]
[391194026,1760413867309,-1500.0,0.00026301,8]
[391194027,1760413867319,-160.0,0.00026318,4]
[391194028,1760413867330,-151.0,0.000264,17]
[391194029,1760413867339,-69084.52,0.000264,7]
[391194030,1760413867349,-151.643392,0.000264,7]
[391194031,1760413867358,-151.0,0.000264,7]
[391194032,1760413867367,-151.0,0.000264,7]
[391194033,1760413867376,-151.0,0.000264,7]
[391194034,1760413867386,-208.72567,0.000264,7]
[391194035,1760413867396,-208.72567,0.000264,7]
[391194036,1760413867406,-208.72567,0.000264,7]
[391194037,1760413867415,-208.72567,0.000264,7]
[391194038,1760413867424,-230.0,0.00026411,20]
[391194039,1760413867433,-20746.26328358,0.00026445,2]
[391194040,1760413867442,-1500.0,0.00026568,2]
[391194041,1760413867452,-1613.00948021,0.00026568,2]
[391194042,1760413867461,-1496.30872842,0.00026575,8]
[391194043,1760413867470,-3858.90389784,0.00026765,2]
[391194044,1760413867479,-616.18778059,0.00026765,2]
[391194045,1760413867489,-22715.16,0.00026801,2]
[391194046,1760413867498,-151.0,0.000269,17]
[391194047,1760413867508,-21513.87502507,0.00026993,2]
[391194048,1760413867516,-402.43064913,0.00027,3]
[391194049,1760413867525,-2000.0,0.00027116,2]
[391194050,1760413867534,-160.0,0.00027206,5]
[391194051,1760413867543,-3736.64964933,0.00027325,2]
[391194052,1760413867553,-151.0,0.00027325,7]
[391194053,1760413867562,-764.893788,0.00027325,7]
[391194054,1760413867572,-764.893788,0.00027325,7]
[391194055,1760413867581,-151.0,0.00027325,7]
[391194056,1760413867590,-764.893788,0.00027325,7]
[391194057,1760413867600,-184.155896,0.00027325,7]
[391194058,1760413867609,-764.893788,0.00027325,7]
[391194059,1760413867618,-184.155896,0.00027325,7]
[391194060,1760413867628,-184.155896,0.00027325,7]
[391194061,1760413867637,-184.155896,0.00027325,7]
[391194062,1760413867646,-356.498542,0.00027325,7]
[391194063,1760413867655,-356.498542,0.00027325,7]
[391194064,1760413867664,-356.498542,0.00027325,7]
[391194065,1760413867673,-356.498542,0.00027325,7]
[391194066,1760413867683,-151.0,0.00027325,7]
[391194067,1760413867692,-151.0,0.00027325,7]
[391194068,1760413867701,-151.0,0.00027325,7]
[391194069,1760413867710,-151.0,0.00027325,7]
[391194070,1760413867719,-151.0,0.00027325,7]
[391194071,1760413867729,-199.381887,0.00027325,7]
[391194072,1760413867738,-199.381887,0.00027325,7]
[391194073,1760413867747,-199.381887,0.00027325,7]
[391194074,1760413867756,-199.381887,0.00027325,7]
[391194075,1760413867765,-4290.78377806,0.00027355,2]
[391194076,1760413867774,-651.06633421,0.00027365,2]
[391194077,1760413867783,-500.85033142,0.00027373,2]
[391194078,1760413867792,-500.0,0.00027373,2]
[391194079,1760413867801,-500.0,0.00027396,4]
[391194080,1760413867811,-500.0,0.00027396,4]
[391194081,1760413867820,-500.0,0.00027396,4]
[391194082,1760413867829,-500.0,0.00027396,4]
[391194083,1760413867839,-500.0,0.00027396,4]
[391194084,1760413867848,-500.0,0.00027396,4]
[391194085,1760413867858,-500.0,0.00027396,4]
[391194086,1760413867867,-500.0,0.00027396,4]
[391194087,1760413867876,-500.0,0.00027396,4]
[391194088,1760413867886,-500.0,0.00027396,4]
[391194089,1760413867895,-500.0,0.00027396,4]
[391194090,1760413867905,-324.4654374,0.00027396,4]
[391194091,1760413867915,-502.81059972,0.00027396,4]
[391194092,1760413867925,-503.42198365,0.00027396,4]
[391194093,1760413867934,-500.0,0.00027396,4]
[391194094,1760413867944,-500.0,0.00027396,4]
[391194095,1760413867955,-279.08336538,0.00027396,4]
[391194096,1760413867965,-558.35,0.00027396,4]
[391194097,1760413867974,-500.0,0.00027396,4]
[391194098,1760413868051,-604.12665002,0.00027396,4]
[391194099,1760413868062,-500.0,0.00027396,4]
[391194100,1760413868072,-510.3957899,0.00027396,4]
[391194101,1760413868082,-500.0,0.00027396,4]
[391194102,1760413868091,-501.8247729,0.00027396,4]
[391194103,1760413868102,-500.0,0.00027396,4]
[391194104,1760413868111,-501.74502493,0.00027396,4]
[391194105,1760413868122,-500.0,0.00027396,4]
[391194106,1760413868131,-500.0,0.00027396,4]
[391194107,1760413868141,-500.0,0.00027396,4]
[391194108,1760413868150,-500.0,0.00027396,4]
[391194109,1760413868159,-500.0,0.00027396,4]
[391194110,1760413868169,-500.0,0.00027396,4]
[391194111,1760413868183,-500.0,0.00027396,4]
[391194112,1760413868194,-500.0,0.00027396,4]
[391194113,1760413868205,-500.0,0.00027396,4]
[391194114,1760413868214,-500.0,0.00027396,4]
[391194115,1760413868226,-408.96,0.00027396,4]
[391194116,1760413868237,-500.57936197,0.00027396,4]
[391194117,1760413868247,-356.0540103,0.00027396,4]
[391194118,1760413868259,-500.0,0.00027396,4]
[391194119,1760413868268,-500.0,0.00027396,4]
[391194120,1760413868278,-500.0,0.00027396,4]
[391194121,1760413868287,-500.0,0.00027396,4]
[391194122,1760413868296,-500.0,0.00027396,4]
[391194123,1760413868307,-270.79,0.00027396,4]
[391194124,1760413868316,-500.0,0.00027396,4]
[391194125,1760413868325,-500.0,0.00027396,4]
[391194126,1760413868335,-500.0,0.00027396,4]
[391194127,1760413868343,-377.95,0.00027396,4]
[391194128,1760413868354,-500.0,0.00027396,4]
[391194129,1760413868364,-500.0,0.00027396,4]
[391194130,1760413868374,-500.0,0.00027396,4]
[391194131,1760413868384,-365.6792584,0.00027396,4]
[391194132,1760413868393,-500.0,0.00027396,4]
[391194133,1760413868402,-500.0,0.00027396,4]
[391194134,1760413868411,-500.0,0.00027396,4]
[391194135,1760413868421,-500.0,0.00027396,4]
[391194136,1760413868431,-522.37958291,0.00027396,4]
[391194137,1760413868440,-500.0,0.00027396,4]
[391194138,1760413868449,-500.0,0.00027396,4]
[391194139,1760413868458,-500.0,0.00027396,4]
[391194140,1760413868468,-500.0,0.00027396,4]
[391194141,1760413868477,-500.0,0.00027396,4]
[391194142,1760413868487,-500.0,0.00027396,4]
[391194143,1760413868497,-500.0,0.00027396,4]
[391194144,1760413868506,-500.0,0.00027396,4]
[391194145,1760413868515,-613.86250346,0.00027396,4]
[391194146,1760413868525,-500.0,0.00027396,4]
[391194147,1760413868534,-500.0,0.00027396,4]
[391194148,1760413868543,-502.05697486,0.00027396,4]
[391194149,1760413868552,-500.0,0.00027396,4]
[391194150,1760413868562,-500.0,0.00027396,4]
[391194151,1760413868571,-500.0,0.00027396,4]
[391194152,1760413868580,-500.0,0.00027396,4]
[391194153,1760413868590,-500.0,0.00027396,4]
[391194154,1760413868599,-268.67,0.00027396,4]
[391194155,1760413868609,-500.0,0.00027396,4]
[391194156,1760413868619,-502.45102861,0.00027396,4]
[391194157,1760413868628,-500.0,0.00027396,4]
[391194158,1760413868638,-500.0,0.00027396,4]
[391194159,1760413868647,-500.0,0.00027396,4]
[391194160,1760413868657,-500.0,0.00027396,4]
[391194161,1760413868667,-506.4280799,0.00027396,4]
[391194162,1760413868676,-500.0,0.00027396,4]
[391194163,1760413868686,-500.0,0.00027396,4]
[391194164,1760413868695,-500.0,0.00027396,4]
[391194165,1760413868706,-500.0,0.00027396,4]
[391194166,1760413868716,-500.0,0.00027396,4]
[391194167,1760413868727,-500.0,0.00027396,4]
[391194168,1760413868736,-500.0,0.00027396,4]
[391194169,1760413868746,-500.0,0.00027396,4]
[391194170,1760413868755,-500.0,0.00027396,4]
[391194171,1760413868764,-500.0,0.00027396,4]
[391194172,1760413868774,-500.0,0.00027396,4]
[391194173,1760413868784,-500.0,0.00027396,4]
[391194174,1760413868799,-500.0,0.00027396,4]
[391194175,1760413868812,-500.0,0.00027396,4]
[391194176,1760413868822,-500.0,0.00027396,4]
[391194177,1760413868832,-558.02,0.00027396,4]
[391194178,1760413868842,-500.99324795,0.00027396,4]
[391194179,1760413868852,-500.0,0.00027396,2]
[391194180,1760413868863,-500.0,0.00027396,2]
[391194181,1760413868874,-627.4177798,0.00027396,2]
[391194182,1760413868883,-500.0,0.00027396,4]
[391194183,1760413868893,-500.0,0.00027396,4]
[391194184,1760413868903,-500.0,0.00027396,4]
[391194185,1760413868913,-502.94172839,0.00027396,4]
[391194186,1760413868923,-151.0,0.00027396,7]
[391194187,1760413868932,-151.0,0.00027396,7]
[391194188,1760413868942,-151.0,0.00027396,7]
[391194189,1760413868954,-151.0,0.00027396,7]
[391194190,1760413868964,-241.571953,0.00027396,7]
[391194191,1760413868974,-9710.11,0.00027397,4]
[391194192,1760413868983,-464.353221,0.00027397,30]
[391194193,1760413868994,-150.0,0.00027397,5]
[391194194,1760413869004,-7041.55,0.000274,2]
[391194195,1760413869013,-3644.0,0.000274,2]
[391194196,1760413869023,-152.02672942,0.000274,5]
[391194197,1760413869033,-279.0,0.00027507,25]
[391194198,1760413869050,-1000.0,0.00027511,30]
[391194199,1760413869064,-174.61919141,0.00027539,2]
[391194200,1760413869075,-22309.888401,0.00027541,2]
[391194201,1760413869085,-305.20186235,0.00027603,2]
[391194202,1760413869096,-2500.0,0.00027664,5]
[391194203,1760413869106,-25239.06,0.00027725,2]
[391194204,1760413869116,-6029.53734037,0.00027819,2]
[391194205,1760413869127,-1000.0,0.00027921,5]
[391194206,1760413869137,-800.0,0.00027949,2]
[391194207,1760413869147,-685.94488783,0.00027965,2]
[391194208,1760413869157,-402.43064913,0.00028,10]
[391194209,1760413869168,-23135.35427183,0.00028089,2]
[391194210,1760413869179,-160.0,0.00028094,6]
[391194211,1760413869190,-69084.52,0.000281,7]
[391194212,1760413869200,-1152.0,0.00028198,2]
[391194213,1760413869314,-515.80169632,0.00028212,5]
[391194214,1760413869324,-983.858,0.00028349,2]
[391194215,1760413869334,-2163.837,0.00028349,2]
[391194216,1760413869343,-631.0,0.00028349,2]
[391194217,1760413869352,-150.109,0.00028349,2]
[391194218,1760413869363,-150.0,0.00028349,2]
[391194219,1760413869374,-4199.0,0.00028349,2]
[391194220,1760413869383,-1285.1576566,0.00028459,2]
[391194221,1760413869393,-1500.0,0.00028468,5]
[391194222,1760413869402,-720.82344145,0.00028565,2]
[391194223,1760413869411,-245.0,0.00028603,30]
[391194224,1760413869421,-475.0,0.00028628,7]
[391194225,1760413869432,-162.7430397,0.00028713,2]
[391194226,1760413869442,-3429.09768781,0.00028742,2]
[391194227,1760413869453,-9710.11,0.00028767,6]
[391194228,1760413869462,-8682.53377013,0.00028872,2]
[391194229,1760413869472,-1242.0,0.00028888,7]
[391194230,1760413869481,-244.97268367,0.00028908,2]
[391194231,1760413869490,-1252.10072104,0.00028911,2]
[391194232,1760413869499,-600.0,0.00028927,2]
[391194233,1760413869508,-160.0,0.00028981,7]
[391194234,1760413869519,-7041.55,0.00029,2]
[391194235,1760413869528,-3644.0,0.00029,2]
[391194236,1760413869537,-1104.65859027,0.00029,2]
[391194237,1760413869547,-1071.91,0.00029,2]
[391194238,1760413869556,-2000.0,0.00029016,5]
[391194239,1760413869565,-800.0,0.00029039,2]
[391194240,1760413869574,-475.0,0.00029076,2]
[391194241,1760413869583,-600.0,0.00029088,2]
[391194242,1760413869593,-800.0,0.00029088,2]
[391194243,1760413869602,-1252.10072104,0.00029102,2]
[391194244,1760413869611,-305.20186235,0.00029111,2]
[391194245,1760413869620,-1000.0,0.00029118,5]
[391194246,1760413869630,-800.0,0.00029118,2]
[391194247,1760413869639,-700.0,0.00029141,7]
[391194248,1760413869648,-755.70199507,0.00029165,2]
[391194249,1760413869658,-1071.91,0.00029174,2]
[391194250,1760413869667,-286.7574337,0.00029175,2]
[391194251,1760413869676,-800.0,0.00029205,2]
[391194252,1760413869686,-200.0,0.0002922,2]
[391194253,1760413869695,-1242.0,0.00029253,2]
[391194254,1760413869706,-5033.04979759,0.000293,22]
[391194255,1760413869715,-5000.0,0.000293,20]
[391194256,1760413869725,-1071.91,0.00029348,2]
[391194257,1760413869735,-1252.10072104,0.0002936,2]
[391194258,1760413869744,-475.0,0.00029372,2]
[391194259,1760413869753,-1155.0,0.00029417,7]
[391194260,1760413869763,-69742.4478,0.00029444,2]
[391194261,1760413869772,-5888.0,0.00029506,7]
[391194262,1760413869781,-151.0,0.00029506,30]
[391194263,1760413869791,-151.0,0.00029506,30]
[391194264,1760413869799,-151.0,0.00029506,30]
[391194265,1760413869809,-151.0,0.00029506,2]
[391194266,1760413869818,-151.0,0.00029506,30]
[391194267,1760413869827,-251.505133,0.00029506,30]
[391194268,1760413869837,-158.901146,0.00029506,30]
[391194269,1760413869846,-151.0,0.00029506,2]
[391194270,1760413869856,-154.167012,0.00029506,30]
[391194271,1760413869865,-151.0,0.00029506,30]
[391194272,1760413869876,-151.0,0.00029506,30]
[391194273,1760413869886,-213.233606,0.00029506,30]
[391194274,1760413869895,-151.0,0.00029506,30]
[391194275,1760413869903,-213.233606,0.00029506,30]
[391194276,1760413869912,-213.233606,0.00029506,30]
[391194277,1760413869921,-213.233606,0.00029506,30]
[391194278,1760413869931,-1071.91,0.00029522,2]
[391194279,1760413869940,-500.933,0.00029528,2]
[391194280,1760413869951,-2203.936,0.00029528,2]
[391194281,1760413869962,-600.0,0.00029548,2]
[391194282,1760413869971,-800.0,0.00029555,2]
[391194283,1760413869980,-1737.00803039,0.00029564,5]
[391194284,1760413869989,-1155.0,0.00029574,2]
[391194285,1760413869999,-69084.52,0.000296,7]
[391194286,1760413870009,-995918.93738945,0.00029601,4]
[391194287,1760413870019,-154.473212,0.00029601,30]
[391194288,1760413870029,-151.0,0.00029601,30]
[391194289,1760413870039,-151.0,0.00029601,30]